[Event "Israeli Team-ch 2023"]
[Site "Petah Tikva"]
[Date "2023.05.12"]
[Round "11.32"]
[White "Poleg, Matan"]
[Black "Dvoirys, Semen I."]
[Result "0-1"]
[ECO "B86"]
[WhiteElo "2272"]
[BlackElo "2465"]
[Annotator "TA"]
[PlyCount "94"]
[EventDate "2023.01.13"]
[EventCountry "ISR"]
[SourceTitle "playchess.com"]
[Source "ChessBase"]
[SourceQuality "1"]
[TimeControl "40/5400+30:1800+30"]

{[%evp 16,94,0,0,10,14,12,8,14,3,11,-53,-45,-49,-54,-52,-61,-47,-44,-51,-30,-46,-51,-79,-68,-74,-22,-35,-31,-24,55,-99,-112,-136,-136,-147,-158,-125,-124,-107,-68,-420,-425,-458,-453,-638,-642,-621,-627,-602,-595,-583,-554,-549,-504,-681,-650,-592,-533,-608,-555,-937,-902,-1442,-1131,-29972,-29964,-29977,-29978,-29979,-29980,-29983,-29980,-29979,-29980,-29980,-29979,-29979,-29979,-29984,-29977]} 1. e4 {[%emt 0:01:36] Atlas,Valeri} c5 {[%emt 0:00:05]} 2. Nf3 {[%emt 0:00:18]} d6 {[%emt 0:00:10]} 3. d4 {[%emt 0:00:25]} cxd4 {[%emt 0:00:04]} 4. Nxd4 {[%emt 0:00:14]} Nf6 {[%emt 0:00:04]} 5. Nc3 {[%emt 0:00:35]} a6 {[%emt 0:00:03]} 6. Bc4 {[%emt 0:00:40]} e6 {[%emt 0:00:06]} 7. Bb3 {[%emt 0:00:15]} Nbd7 {[%emt 0:00:22]} 8. Be3 {[%emt 0:04:39]} Nc5 {[%emt 0:00:31]} 9. f3 {[%emt 0:00:04]} b5 {[%emt 0:03:27] B86: Sicilian Scheveningen/Najdorf: 6 Bc4, without early ...b5.} 10. a3 {[%emt 0:00:37]} Nxb3 {[%emt 0:05:41]} 11. cxb3 {[%emt 0:00:16]} Bb7 {[%emt 0:21:12] The position is equal.} 12. Qd2 {[%emt 0:02:41]} Be7 {[%emt 0:07:28] [#]} 13. O-O-O $146 {[%emt 0:00:37]} (13. b4 $11) ({Predecessor:} 13. O-O O-O 14. b4 Rc8 15. Nb3 Nd7 16. Na5 Ba8 17. Rfd1 f5 18. exf5 Rxf5 19. Ne2 {0-1 Leyva Proenza,R (2400)-Vera Gonzalez Quevedo,R (2534) CUB-ch Las Tunas 2001 (17)}) 13... d5 $15 {[%emt 0:01:53][%cal Rd5e4]} 14. e5 {[%emt 0:02:44]} Nd7 {[%emt 0:00:07]} 15. f4 {[%emt 0:00:06][%cal Bf3f4,Bf4f5][%mdl 32]} b4 {[%emt 0:00:05]} 16. axb4 {[%emt 0:01:23]} Bxb4 {[%emt 0:00:05]} 17. f5 {[%emt 0:09:25]} Nxe5 {[%emt 0:20:12]} 18. fxe6 {[%emt 0:00:30]} O-O {[%emt 0:00:30]} 19. Nc2 {[%emt 0:00:30]} a5 {[%emt 0:00:30]} 20. Qd4 {[%emt 0:00:30]} Nc6 {[%emt 0:00:30]} (20... Qd6 $17 21. Nxd5 Qxe6) 21. exf7+ $11 {[%emt 0:00:30]} Rxf7 {[%emt 0:00:30]} 22. Qxd5 {[%emt 0:00:30]} Qf6 {[%emt 0:00:30]} (22... Qe8 $11) 23. Ne4 $2 {[%emt 0:00:30] [#]} (23. Rhf1 $14 {keeps the upper hand.} Ne5 24. Qb5) 23... Qg6 $1 $17 {[%emt 0:00:30]} 24. Ng5 {[%emt 0:00:30][%mdl 64] [#] Pin} Ne5 {[%emt 0:00:30][%mdl 512] Dancing on a razor blade.} 25. Qe6 {[%emt 0:00:30]} Qxe6 {[%emt 0:00:30]} 26. Nxe6 {[%emt 0:00:30]} Bxg2 {[%emt 0:00:30] A strong pair of Bishops.} 27. Rhg1 {[%emt 0:00:30]} Be4 {[%emt 0:00:30] Hoping for ...Rc8.} 28. Bd4 $2 {[%emt 0:00:30][%mdl 8192] White does not recover from this.} ({White must play} 28. Ng5 $15 Bxc2 29. Kxc2) 28... Nf3 $19 {[%emt 0:00:30]} 29. Rg3 {[%emt 0:00:30][%cal Rd4g7]} Nxd4 {[%emt 0:00:30]} (29... Nxh2 30. Ng5 Nf1 31. Rg1 Bxc2 32. Nxf7 Bxd1 33. Rxg7+ Kf8 34. Ng5 (34. Kxd1 Ne3+ 35. Kc1 Nf5 $17) 34... Bxb3 35. Nxh7+ Ke8 36. Nf6+ Kf8 37. Nh7+ Ke8 38. Nf6+ Kf8 39. Nh7+ $11) 30. Rxd4 {[%emt 0:00:30] [#]} (30. Nexd4 $142 Bd6 31. Rc3) 30... Rc8 $1 {[%emt 0:00:30]} 31. Rc3 {[%emt 0:00:30]} Rf1+ {[%emt 0:00:30]} ({Not} 31... Rxc3 32. bxc3 Rf1+ 33. Kd2 (33. Kb2 Bxc2 34. cxb4 Bf5 $11) 33... Bxc2 34. cxb4 (34. Kxc2 Be7 $11) 34... Rf2+ 35. Ke3 Rxh2 36. bxa5 Bxb3 37. Nc5 $11) 32. Kd2 {[%emt 0:00:30][%cal Oc2b4] Black must now prevent Nxb4!} Bxc3+ {[%emt 0:00:30]} 33. bxc3 {[%emt 0:00:30]} Bxc2 {[%emt 0:00:30]} 34. Kxc2 {[%emt 0:00:30][%mdl 4096] Endgame KRR-KRN} Rf2+ {[%emt 0:00:30]} 35. Rd2 {[%emt 0:00:30]} Rxd2+ {[%emt 0:00:30]} 36. Kxd2 {[%emt 0:00:30] KR-KN} Kf7 {[%emt 0:00:30]} 37. Nd4 {[%emt 0:00:30]} g5 {[%emt 0:00:30][%cal Bg7g5,Bg5g4][%mdl 32]} 38. c4 {[%emt 0:00:30]} Kf6 {[%emt 0:00:30]} 39. Ke3 {[%emt 0:00:30]} g4 {[%emt 0:00:30]} 40. Kf4 {[%emt 0:00:30]} h5 {[%emt 0:00:30] Black mates.} 41. Ke4 {[%emt 0:30:30] [#]} a4 $1 {[%emt 0:30:30][%mdl 64] Deflection} 42. bxa4 {[%emt 0:00:30]} (42. Ke3 a3) 42... Rxc4 {[%emt 0:00:30]} 43. a5 {[%emt 0:00:30]} Ra4 {[%emt 0:00:30]} 44. a6 {[%emt 0:00:30]} Rxa6 {[%emt 0:00:30]} 45. Ne2 {[%emt 0:00:30]} Re6+ {[%emt 0:00:30]} 46. Kd3 {[%emt 0:00:30]} Kg5 {[%emt 0:00:30]} 47. Nd4 {[%emt 0:00:30]} Re1 {[%emt 0:00:30] An entertaining game by Dvoirys.   Weighted Error Value: White=0.71/Black=0.09 (flawless)} 0-1

[Event "Israeli Team-ch 2023"]
[Site "Petah Tikva"]
[Date "2023.05.12"]
[Round "11.33"]
[White "Vydeslaver, Alik"]
[Black "Tifferet, Shaked"]
[Result "1/2-1/2"]
[ECO "C47"]
[WhiteElo "2385"]
[BlackElo "2226"]
[Annotator "TA"]
[PlyCount "32"]
[EventDate "2023.01.13"]
[EventCountry "ISR"]
[SourceTitle "playchess.com"]
[Source "ChessBase"]
[SourceQuality "1"]
[TimeControl "40/5400+30:1800+30"]

{[%evp 21,32,0,6,8,5,14,12,6,18,8,13,14,22]} 1. e4 {[%emt 0:00:01]} e5 {[%emt 0:00:10]} 2. Nf3 {[%emt 0:00:05]} Nc6 {[%emt 0:00:07]} 3. Nc3 {[%emt 0:00:04]} Nf6 {[%emt 0:00:09]} 4. d4 {[%emt 0:00:02]} exd4 {[%emt 0:00:15]} 5. Nxd4 {[%emt 0:00:05]} Bb4 {[%emt 0:00:29]} 6. Nxc6 {[%emt 0:00:06]} bxc6 {[%emt 0:00:05]} 7. Bd3 {[%emt 0:00:02]} d5 {[%emt 0:01:40]} 8. exd5 {[%emt 0:01:57]} O-O {[%emt 0:00:08]} 9. O-O {[%emt 0:00:06]} cxd5 {[%emt 0:01:49]} 10. Bg5 {[%emt 0:00:04]} c6 {[%emt 0:01:45]} 11. Qf3 {[%emt 0:00:16]} Rb8 {[%emt 0:01:50] The position is equal.} 12. Bxf6 {[%emt 0:12:04] C47: Scotch Four Knights and Four Knights with 4 g3.} (12. h3 {keeps more tension.} Bd6 13. b3 Be5 14. Bf4) 12... Qxf6 {[%emt 0:00:10]} 13. Qxf6 {[%emt 0:00:02]} gxf6 {[%emt 0:00:06]} 14. Ne2 {[%emt 0:00:02]} Ba5 {[%emt 0:30:03]} 15. b3 {[%emt 0:04:41] [#]} Bg4 $146 {[%emt 0:02:02]} ({Predecessor:} 15... Re8 16. Rad1 Bg4 17. f3 Bb6+ 18. Kh1 Bd7 19. Ng3 Ba5 20. c4 Re3 21. Nh5 Bc3 22. cxd5 cxd5 {½-½ Wahlstrom,L (2105)-Korley,K (2329) Koge Xtracon op 2013 (6)}) 16. Ng3 {[%emt 0:01:37]} Bc3 {[%emt 0:11:16] An uneventful encounter.   Weighted Error Value: White=0.00 (flawless) /Black=0.07 (flawless)} 1/2-1/2

[Event "Israeli Team-ch 2023"]
[Site "Petah Tikva"]
[Date "2023.05.12"]
[Round "11.34"]
[White "Steiner-Prozhanski, Giora"]
[Black "Taichman, Ori"]
[Result "0-1"]
[ECO "E92"]
[WhiteElo "2254"]
[BlackElo "2317"]
[Annotator "TA"]
[PlyCount "68"]
[EventDate "2023.01.13"]
[EventCountry "ISR"]
[SourceTitle "playchess.com"]
[Source "ChessBase"]
[SourceQuality "1"]
[TimeControl "40/5400+30:1800+30"]

{[%evp 21,68,30,37,27,31,15,29,29,16,14,34,31,37,24,110,83,69,68,95,85,83,77,83,66,51,68,79,-1,0,-203,-188,-278,-269,-320,-297,-318,-311,-331,-175,-382,-380,-396,-368,-375,-372,-497,-498,-512,-494]} 1. d4 {[%emt 0:00:05]} Nf6 {[%emt 0:00:02]} 2. c4 {[%emt 0:00:06]} g6 {[%emt 0:00:03]} 3. Nc3 {[%emt 0:00:10]} Bg7 {[%emt 0:00:02]} 4. e4 {[%emt 0:00:05]} d6 {[%emt 0:00:05]} 5. Nf3 {[%emt 0:00:06]} O-O {[%emt 0:00:07]} 6. Be2 {[%emt 0:00:03]} e5 {[%emt 0:00:07]} 7. d5 {[%emt 0:00:02]} a5 {[%emt 0:00:05]} 8. Be3 {[%emt 0:00:05]} Ng4 {[%emt 0:00:11]} 9. Bg5 {[%emt 0:00:03]} f6 {[%emt 0:00:05]} 10. Bh4 {[%emt 0:00:03]} Na6 {[%emt 0:02:43]} 11. Nd2 {[%emt 0:00:09]} Nh6 {[%emt 0:00:08]} 12. a3 {[%emt 0:00:30] E92: King's Indian: Classical: 6 Be2 e5: 7 dxe5, 7 Be3 and Petrosian System without 7...Nbd7.} Bd7 {[%emt 0:00:19]} 13. O-O {[%emt 0:00:41]} Qe8 {[%emt 0:05:33]} 14. b3 {[%emt 0:01:11][%cal Bb2b3,Bb3b4,Bb4b5][%mdl 32] White has an edge.} f5 {[%emt 0:00:26]} 15. f3 {[%emt 0:01:04]} Bf6 {[%emt 0:04:17]} 16. Bxf6 {[%emt 0:20:39]} Rxf6 {[%emt 0:00:04]} 17. b4 {[%emt 0:00:24] [#]} g5 $146 {[%emt 0:09:01]} (17... axb4 18. axb4 Rf8 19. Qb3 $16) (17... Rf8 $11) ({Predecessor:} 17... b6 18. Qb3 Rf8 19. c5 bxc5 20. Bxa6 Rxa6 21. bxc5 dxc5 22. Qc4 Qc8 23. Qxc5 c6 {1-0 Hess,C (2305)-Sambale,I Chemnitz op 1997 (2)}) 18. Qb3 {[%emt 0:05:01]} (18. bxa5 f4 $14) 18... a4 {[%emt 0:20:09]} 19. Qc2 {[%emt 0:25:40][%cal Oc4c5]} f4 $1 {[%emt 0:00:30] [#]} 20. c5 $1 {[%emt 0:00:30]} dxc5 {[%emt 0:00:30]} 21. b5 {[%emt 0:00:30]} Nb8 {[%emt 0:00:30]} 22. Nc4 {[%emt 0:00:30]} Nf7 {[%emt 0:00:30]} 23. d6 {[%emt 0:00:30]} c6 {[%emt 0:00:30][%cal Bc7c6,Bc6b5][%mdl 32] Wards off Nd5} 24. Rfd1 {[%emt 0:00:30]} ({Stronger than} 24. Nxa4 Rxa4 25. Qxa4 cxb5 $17) (24. Nb6 $16 Ra7 25. bxc6 (25. Ncxa4 cxb5 26. Nxd7 Nxd7 $11) (25. Nbxa4 Qd8 $14) 25... Nxc6 26. Ncd5 (26. Nbxa4 $2 Nd4 $19) 26... Rxd6 27. Qxc5) 24... Be6 {[%emt 0:00:30]} 25. Nxa4 $2 {[%emt 0:00:30] [#]} (25. Rab1 $11 {and White has nothing to worry.}) 25... cxb5 $19 {[%emt 0:00:30]} 26. Ncb6 {[%emt 0:00:30]} (26. Nxe5 {is a better defense.} Nxe5 27. Nxc5) 26... Rxa4 {[%emt 0:00:30]} 27. Nxa4 {[%emt 0:00:30]} bxa4 {[%emt 0:00:30]} 28. Qxc5 {[%emt 0:00:30]} Bb3 {[%emt 0:00:30]} 29. Rd2 {[%emt 0:00:30]} Qd8 {[%emt 0:00:30]} (29... Qc6 $142 30. Rc1 (30. Qxc6 $2 Nxc6 31. d7 Nd4 $19) 30... Rxd6 31. Rxd6 Nxd6) 30. d7 $2 {[%emt 0:00:30]} (30. Bc4) 30... Nxd7 {[%emt 0:00:30][%cal Bb8d7,Bd7b6,Bb6c4][%mdl 32]} 31. Qb5 {[%emt 0:00:30]} Qb6+ {[%emt 0:00:30]} 32. Qxb6 {[%emt 0:00:30]} Nxb6 {[%emt 0:00:30]} 33. Bd1 {[%emt 0:00:30]} Nc4 {[%emt 0:00:30]} 34. Rd5 {[%emt 0:00:30]} Rd6 {[%emt 0:00:30] Weighted Error Value: White=0.49/Black=0.20 (precise)} 0-1

[Event "Israeli Team-ch 2023"]
[Site "Petah Tikva"]
[Date "2023.05.12"]
[Round "11.35"]
[White "Pasman, Michael"]
[Black "Poleg, Dan"]
[Result "1-0"]
[ECO "E02"]
[WhiteElo "2342"]
[BlackElo "2193"]
[Annotator "TA"]
[PlyCount "119"]
[EventDate "2023.01.13"]
[EventCountry "ISR"]
[SourceTitle "playchess.com"]
[Source "ChessBase"]
[SourceQuality "1"]
[TimeControl "40/5400+30:1800+30"]

{[%evp 15,119,27,36,39,31,31,29,36,66,61,60,67,61,41,44,36,40,35,83,68,85,76,107,104,109,100,130,120,134,137,120,129,284,142,147,147,166,163,210,115,439,396,402,406,418,299,294,281,337,324,413,413,413,393,425,413,425,425,397,406,421,406,407,383,413,369,426,397,438,404,1228,343,350,-1753,344,338,350,349,347,322,327,313,603,306,622,614,616,606,722,825,947,845,6083,6083,5214,5277,4499,4133,29981,29982,29982,29983,29983,29984,29983,29984]} 1. Nf3 {[%emt 0:00:05]} d5 {[%emt 0:00:07]} 2. c4 {[%emt 0:00:05]} e6 {[%emt 0:02:33]} 3. g3 {[%emt 0:00:05]} Nf6 {[%emt 0:00:29]} 4. Bg2 {[%emt 0:00:04]} Be7 {[%emt 0:00:46]} 5. O-O {[%emt 0:00:05]} dxc4 {[%emt 0:02:04]} 6. Qa4+ {[%emt 0:01:17]} Bd7 {[%emt 0:01:26]} 7. Qxc4 {[%emt 0:00:10]} Bc6 {[%emt 0:00:04]} 8. d4 {[%emt 0:01:35]} O-O {[%emt 0:05:22]} 9. Nc3 {[%emt 0:00:08] E02: Open Catalan: 5 Qa4+.} a6 {[%emt 0:01:02]} 10. Bg5 {[%emt 0:10:56]} b5 {[%emt 0:02:04]} 11. Qd3 {[%emt 0:00:06] White has an edge.} b4 {[%emt 0:04:09]} 12. Bxf6 {[%emt 0:00:11]} gxf6 {[%emt 0:06:11]} 13. Ne4 {[%emt 0:00:27]} f5 {[%emt 0:02:02]} 14. Ned2 {[%emt 0:00:05]} Nd7 {[%emt 0:03:37] [#]} 15. Rfc1 $146 {[%emt 0:19:07]} ({Predecessor:} 15. Rac1 Bb5 16. Qe3 Rc8 17. Nb3 Nb6 18. Nc5 Nd5 19. Qd2 a5 20. Rfd1 c6 21. Ne5 {1-0 Matlakov,M (2674)-Hess,R (2591) Chess.com Rapid Wk16 Swiss 2022 (3)}) 15... Bb7 {[%emt 1:06:04]} 16. Qe3 Bf6 (16... Bd5 $14) 17. Rc2 $16 Nb6 18. Rac1 Nd5 19. Qb3 a5 20. a4 $1 Bg7 21. Rc5 Ra7 22. Nc4 Qa8 23. Nce5 {White is more active.} Rd8 $2 {[#]} (23... Ne7 $16 {was worth a try.}) 24. Nc6 (24. e4 $1 $18) 24... Bxc6 25. Rxc6 Nc3 26. Rxe6 c5 (26... fxe6 $142 27. Qxe6+ (27. bxc3 Qd5 $15) 27... Kh8) 27. Re3 (27. bxc3 $18 fxe6 28. cxb4 (28. Qxe6+ Kh8 $16)) 27... cxd4 $2 {[%mdl 8192]} (27... Qd5 $16 {is more resistant.} 28. Qxd5 (28. Rcxc3 Qxb3 29. Rxb3 c4 $14) 28... Nxd5) 28. Nxd4 $18 {[%mdl 64] Discovered Attack} Bxd4 29. Bxa8 Bxe3 30. Rxc3 bxc3 31. Bf3 (31. fxe3 $6 Raxa8 32. bxc3 (32. Qxc3 Rd5 $16) 32... Rab8 $16) (31. bxc3 Bxf2+ 32. Kxf2 Rdxa8 $16) (31. Qxc3 Bd4 32. Qf3 Raxa8 $17) 31... Bc5 32. bxc3 ({Much less strong is} 32. Qxc3 Bd4 33. Qc2 h6) 32... Rc8 33. Qd5 Bf8 34. c4 ({Resist} 34. Qxf5 Rxc3 35. Be4 Bg7 36. Qxh7+ Kf8 $18) 34... Rc5 35. Qd3 Ra6 36. Bd5 Rf6 37. Qe3 h6 {[%emt 0:00:00]} 38. Qd3 {[%emt 1:10:32]} Be7 {[%emt 0:01:57]} 39. Qd4 {[%emt 0:00:35]} Kf8 {[%emt 0:00:14]} 40. Qe5 {[%emt 0:01:29]} Rc8 {[%emt 0:00:25]} 41. Kg2 {[%emt 0:30:56]} Rc5 {[%emt 0:30:16]} 42. e3 {[%emt 0:02:57]} Kg7 {[%emt 0:02:39]} (42... Rc8 $142 43. h3 Rc5) 43. Qb8 $2 {[%emt 0:00:19]} (43. Qxe7 Rc8 44. Qa7) 43... Bd6 {[%emt 0:00:33] [#]} 44. h3 $4 {[%emt 0:00:00][%mdl 8192]} Rc7 $4 {[%emt 0:00:00][%mdl 8192]} (44... Bxb8 $19 {and life is good for Black.} 45. h4 Rb6) 45. Qd8 {[%emt 0:00:00]} Rc5 {[%emt 0:00:00]} 46. f4 {[%emt 0:00:00]} Bc7 {[%emt 0:00:00]} 47. Qe7 {[%emt 0:00:00]} Bd6 {[%emt 0:00:00]} 48. Qa7 {[%emt 0:00:00] Threatens to win with g4.} Bf8 $2 {[%emt 0:00:00]} (48... h5 49. Kf3 Kh7) 49. Kf3 {[%emt 0:00:00] Hoping for g4.} Bd6 $2 {[%emt 0:00:00]} (49... h5 50. Qb7 Bd6) 50. g4 {[%emt 0:00:00]} fxg4+ {[%emt 0:00:00]} 51. hxg4 {[%emt 0:00:00]} Kg8 {[%emt 0:00:00]} 52. Ke2 {[%emt 0:00:00]} Kg7 {[%emt 0:00:00]} 53. Qb7 {[%emt 0:00:00]} Kf8 {[%emt 0:00:00]} 54. g5 {[%emt 0:00:00]} hxg5 {[%emt 0:00:00]} 55. fxg5 {[%emt 0:00:00][%cal Bf4g5,Bg5g6][%mdl 32]} Rf5 {[%emt 0:00:00]} 56. Qd7 {[%emt 0:00:00][%csl LRd6,LRf5]} Rcxd5 {[%emt 0:00:00]} 57. cxd5 {[%emt 0:00:00] White mates.} Rxd5 {[%emt 0:00:00]} 58. Qd8+ {[%emt 0:00:00]} Kg7 {[%emt 0:00:00]} 59. Qf6+ {[%emt 0:00:00]} Kg8 {[%emt 0:00:00]} 60. g6 {[%emt 0:00:00] What a bad dream for Black. An entertaining game by Pasman.   Weighted Error Value: White=0.38/Black=0.67} 1-0